[Event "Early-Titled-Tuesday-Blitz-February-20-2024"]
[Site "Chess.com"]
[Date "2024.02.20"]
[Round "10"]
[White "DeArron_Fox"]
[Black "Heinza9"]
[Result "1-0"]
[WhiteElo "2515"]
[BlackElo "2323"]
[TimeControl "180+1"]
[EndTime "9:56:11 PST"]
[Termination "DeArron_Fox won by resignation"]

1. d4 {[%clk 0:03:00.9]} 1... f5 {[%clk 0:02:59.5]} 2. g3 {[%clk 0:02:53]} 2...
Nf6 {[%clk 0:02:59.4]} 3. Bg2 {[%clk 0:02:53.6]} 3... g6 {[%clk 0:02:59.8]} 4.
Nf3 {[%clk 0:02:54.2]} 4... Bg7 {[%clk 0:03:00.2]} 5. O-O {[%clk 0:02:54.9]}
5... O-O {[%clk 0:03:00.5]} 6. c4 {[%clk 0:02:54.1]} 6... d6 {[%clk 0:03:01]} 7.
Nc3 {[%clk 0:02:54.6]} 7... Qe8 {[%clk 0:03:01.5]} 8. b3 {[%clk 0:02:52.1]} 8...
c6 {[%clk 0:02:59.4]} 9. Bb2 {[%clk 0:02:49.9]} 9... e5 {[%clk 0:02:59.5]} 10.
dxe5 {[%clk 0:02:15.9]} 10... dxe5 {[%clk 0:02:59.2]} 11. c5 {[%clk 0:02:14.7]}
11... e4 {[%clk 0:02:57.2]} 12. Nd2 {[%clk 0:02:14.6]} 12... Na6 {[%clk
0:02:54.2]} 13. Na4 {[%clk 0:01:52.6]} 13... e3 {[%clk 0:02:50.5]} 14. Nc4
{[%clk 0:01:52.1]} 14... exf2+ {[%clk 0:02:48.5]} 15. Rxf2 {[%clk 0:01:50.4]}
15... Ng4 {[%clk 0:02:45.9]} 16. Bxg7 {[%clk 0:01:49.7]} 16... Kxg7 {[%clk
0:02:40.6]} 17. Rf1 {[%clk 0:01:29.4]} 17... Kg8 {[%clk 0:02:37.5]} 18. Qd4
{[%clk 0:01:24.5]} 18... Be6 {[%clk 0:02:32.2]} 19. Nd6 {[%clk 0:01:23.1]} 19...
Qe7 {[%clk 0:02:32.2]} 20. e4 {[%clk 0:01:12.9]} 20... fxe4 {[%clk 0:02:24.5]}
21. Qxe4 {[%clk 0:01:10.6]} 21... Rxf1+ {[%clk 0:02:14]} 22. Rxf1 {[%clk
0:01:10.2]} 22... Re8 {[%clk 0:02:11.1]} 23. Nxe8 {[%clk 0:01:04]} 23... Nxc5
{[%clk 0:01:46.2]} 24. Nxc5 {[%clk 0:01:03.2]} 24... Qxc5+ {[%clk 0:01:46.2]}
25. Kh1 {[%clk 0:01:03.6]} 1-0

[Event "Early-Titled-Tuesday-Blitz-February-20-2024"]
[Site "Chess.com"]
[Date "2024.02.20"]
[Round "10"]
[White "JSPrepz"]
[Black "Sina_Movahed"]
[Result "1-0"]
[WhiteElo "2873"]
[BlackElo "2950"]
[TimeControl "180+1"]
[EndTime "9:56:14 PST"]
[Termination "JSPrepz won by resignation"]

1. e4 {[%clk 0:03:00.9]} 1... c5 {[%clk 0:02:59.8]} 2. Nf3 {[%clk 0:03:00.8]}
2... d6 {[%clk 0:03:00.5]} 3. Nc3 {[%clk 0:03:00.6]} 3... Nf6 {[%clk 0:03:00.4]}
4. e5 {[%clk 0:03:01.1]} 4... dxe5 {[%clk 0:03:00.4]} 5. Nxe5 {[%clk 0:03:02]}
5... a6 {[%clk 0:03:01.1]} 6. g3 {[%clk 0:03:01.5]} 6... Qd6 {[%clk 0:03:00.9]}
7. Nc4 {[%clk 0:03:00]} 7... Qc6 {[%clk 0:02:59.4]} 8. Rg1 {[%clk 0:02:59.8]}
8... Bg4 {[%clk 0:02:52.7]} 9. Be2 {[%clk 0:02:59.4]} 9... Bxe2 {[%clk 0:02:53]}
10. Qxe2 {[%clk 0:03:00.3]} 10... Nbd7 {[%clk 0:02:53.5]} 11. a4 {[%clk
0:02:57.6]} 11... e6 {[%clk 0:02:51.8]} 12. d3 {[%clk 0:02:56.8]} 12... Be7
{[%clk 0:02:50.2]} 13. g4 {[%clk 0:02:57.4]} 13... O-O {[%clk 0:02:49.4]} 14. g5
{[%clk 0:02:58]} 14... Nd5 {[%clk 0:02:49.8]} 15. Ne4 {[%clk 0:02:58.3]} 15...
b5 {[%clk 0:02:49.4]} 16. Ne3 {[%clk 0:02:56.2]} 16... Ne5 {[%clk 0:02:46.4]}
17. Ng4 {[%clk 0:02:51.2]} 17... Nxg4 {[%clk 0:02:44.3]} 18. Qxg4 {[%clk
0:02:52.1]} 18... Kh8 {[%clk 0:02:35.3]} 19. Bd2 {[%clk 0:02:49]} 19... c4
{[%clk 0:02:35.2]} 20. h4 {[%clk 0:02:39.4]} 20... cxd3 {[%clk 0:02:35.2]} 21.
cxd3 {[%clk 0:02:39.6]} 21... Qc2 {[%clk 0:02:30.9]} 22. h5 {[%clk 0:02:33.4]}
22... Nb4 {[%clk 0:02:23.7]} 23. h6 {[%clk 0:02:26.2]} 23... Nxd3+ {[%clk
0:02:16.4]} 24. Kf1 {[%clk 0:02:26.4]} 24... b4 {[%clk 0:02:04.7]} 25. hxg7+
{[%clk 0:02:22.5]} 25... Kxg7 {[%clk 0:02:05.6]} 26. Qe2 {[%clk 0:02:12.7]}
26... Ne5 {[%clk 0:01:59]} 27. g6 {[%clk 0:02:10.1]} 27... Qd3 {[%clk
0:01:50.7]} 28. gxh7+ {[%clk 0:02:05.9]} 28... Kh8 {[%clk 0:01:43.4]} 29. Qxd3
{[%clk 0:02:04.8]} 29... Nxd3 {[%clk 0:01:44.3]} 30. Ke2 {[%clk 0:01:57.8]}
30... Nxb2 {[%clk 0:01:44.3]} 31. Bh6 {[%clk 0:01:52.8]} 31... Nc4 {[%clk
0:01:31.9]} 32. Bg7+ {[%clk 0:01:51.8]} 32... Kxh7 {[%clk 0:01:31.4]} 33. Rg3
{[%clk 0:01:30.2]} 33... f5 {[%clk 0:01:23.3]} 34. Bf6 {[%clk 0:01:05.3]} 1-0

[Event "Early-Titled-Tuesday-Blitz-February-20-2024"]
[Site "Chess.com"]
[Date "2024.02.20"]
[Round "10"]
[White "Mesa_1"]
[Black "Casablanca"]
[Result "0-1"]
[WhiteElo "2572"]
[BlackElo "2626"]
[TimeControl "180+1"]
[EndTime "9:56:14 PST"]
[Termination "Casablanca won by resignation"]

1. e4 {[%clk 0:03:00.9]} 1... c5 {[%clk 0:02:59]} 2. Nf3 {[%clk 0:03:01.4]} 2...
d6 {[%clk 0:02:59.1]} 3. d4 {[%clk 0:03:01.3]} 3... cxd4 {[%clk 0:03:00]} 4.
Nxd4 {[%clk 0:03:01.9]} 4... Nf6 {[%clk 0:03:00.7]} 5. Nc3 {[%clk 0:03:01.9]}
5... g6 {[%clk 0:03:01.4]} 6. Be3 {[%clk 0:02:59.8]} 6... Bg7 {[%clk 0:03:02]}
7. f3 {[%clk 0:03:00.4]} 7... O-O {[%clk 0:03:02.5]} 8. Qd2 {[%clk 0:03:01]}
8... Nc6 {[%clk 0:03:03.1]} 9. O-O-O {[%clk 0:03:01.6]} 9... d5 {[%clk
0:03:03.8]} 10. exd5 {[%clk 0:03:02.3]} 10... Nxd5 {[%clk 0:03:04.7]} 11. Nxc6
{[%clk 0:03:02.9]} 11... bxc6 {[%clk 0:03:05.6]} 12. Bd4 {[%clk 0:03:03.5]}
12... Bxd4 {[%clk 0:03:06.3]} 13. Qxd4 {[%clk 0:03:03.1]} 13... Qb6 {[%clk
0:03:06.9]} 14. Na4 {[%clk 0:03:03.6]} 14... Qc7 {[%clk 0:03:07.3]} 15. Bc4
{[%clk 0:02:49.5]} 15... Rd8 {[%clk 0:03:06.5]} 16. Bb3 {[%clk 0:02:38]} 16...
Bf5 {[%clk 0:03:05.9]} 17. Nc5 {[%clk 0:02:30.8]} 17... Nf4 {[%clk 0:02:59.2]}
18. Qf2 {[%clk 0:02:24.9]} 18... Rxd1+ {[%clk 0:02:59.5]} 19. Rxd1 {[%clk
0:02:25.8]} 19... Rd8 {[%clk 0:03:00]} 20. Rxd8+ {[%clk 0:02:24.2]} 20... Qxd8
{[%clk 0:03:00.9]} 21. g3 {[%clk 0:02:22.3]} 21... Qd4 {[%clk 0:03:01.1]} 22.
Qxd4 {[%clk 0:02:19.3]} 22... Ne2+ {[%clk 0:03:01.3]} 23. Kd2 {[%clk 0:02:20.2]}
23... Nxd4 {[%clk 0:03:02.1]} 24. Ke3 {[%clk 0:02:15.5]} 24... Nxc2+ {[%clk
0:03:02.4]} 25. Bxc2 {[%clk 0:02:02.9]} 25... Bxc2 {[%clk 0:03:03.3]} 26. Nd7
{[%clk 0:01:58.6]} 26... Bb1 {[%clk 0:02:52]} 27. a4 {[%clk 0:01:57.2]} 27...
Ba2 {[%clk 0:02:50.2]} 28. Kd4 {[%clk 0:01:49.1]} 28... f6 {[%clk 0:02:48]} 29.
b4 {[%clk 0:01:45.9]} 29... Bd5 {[%clk 0:02:40.3]} 30. f4 {[%clk 0:01:32.8]}
30... Kf7 {[%clk 0:02:39.3]} 31. Kc5 {[%clk 0:01:21.3]} 31... Bf3 {[%clk
0:02:35.1]} 32. a5 {[%clk 0:01:16.8]} 32... Ke8 {[%clk 0:02:28.7]} 33. Nb8
{[%clk 0:01:13.7]} 33... e5 {[%clk 0:02:29]} 34. fxe5 {[%clk 0:01:14.6]} 34...
fxe5 {[%clk 0:02:29.6]} 35. a6 {[%clk 0:01:10.6]} 35... Kd8 {[%clk 0:01:29.6]}
36. Nxc6+ {[%clk 0:01:06.6]} 36... Bxc6 {[%clk 0:01:30.2]} 37. Kxc6 {[%clk
0:01:07.5]} 37... e4 {[%clk 0:01:29.5]} 38. b5 {[%clk 0:01:03.8]} 38... Kc8
{[%clk 0:01:30.2]} 39. b6 {[%clk 0:00:58.2]} 39... Kb8 {[%clk 0:01:30.1]} 0-1

[Event "Early-Titled-Tuesday-Blitz-February-20-2024"]
[Site "Chess.com"]
[Date "2024.02.20"]
[Round "10"]
[White "waspofborneo"]
[Black "HeroWilczek"]
[Result "0-1"]
[WhiteElo "2245"]
[BlackElo "2456"]
[TimeControl "180+1"]
[EndTime "9:56:16 PST"]
[Termination "HeroWilczek won by resignation"]

1. h3 {[%clk 0:03:00.9]} 1... d5 {[%clk 0:02:57.6]} 2. d4 {[%clk 0:03:00.9]}
2... c5 {[%clk 0:02:52.6]} 3. c3 {[%clk 0:02:56.6]} 3... Nf6 {[%clk 0:02:50.6]}
4. e3 {[%clk 0:02:51.4]} 4... Qc7 {[%clk 0:02:46.3]} 5. Nf3 {[%clk 0:02:50]}
5... g6 {[%clk 0:02:46.4]} 6. Bb5+ {[%clk 0:02:48]} 6... Bd7 {[%clk 0:02:45.7]}
7. a4 {[%clk 0:02:46.8]} 7... Bg7 {[%clk 0:02:45.5]} 8. O-O {[%clk 0:02:43.2]}
8... O-O {[%clk 0:02:44.1]} 9. Nbd2 {[%clk 0:02:40.4]} 9... a6 {[%clk
0:02:36.7]} 10. Bxd7 {[%clk 0:02:39.8]} 10... Nbxd7 {[%clk 0:02:37.6]} 11. Nb3
{[%clk 0:02:39.4]} 11... Rac8 {[%clk 0:02:35.2]} 12. Re1 {[%clk 0:02:35.5]}
12... Rfe8 {[%clk 0:02:33.7]} 13. Nbd2 {[%clk 0:02:34.2]} 13... e5 {[%clk
0:02:30.4]} 14. dxe5 {[%clk 0:02:31.7]} 14... Nxe5 {[%clk 0:02:30.5]} 15. Nxe5
{[%clk 0:02:32.6]} 15... Qxe5 {[%clk 0:02:26.4]} 16. Nf3 {[%clk 0:02:28.6]}
16... Qc7 {[%clk 0:02:25.2]} 17. Rb1 {[%clk 0:02:08.7]} 17... h5 {[%clk
0:02:16.6]} 18. Qc2 {[%clk 0:02:00.4]} 18... Ne4 {[%clk 0:02:14.9]} 19. Nd2
{[%clk 0:02:00.2]} 19... Rcd8 {[%clk 0:02:11.9]} 20. Nf1 {[%clk 0:01:18.4]}
20... c4 {[%clk 0:02:08.2]} 21. Rd1 {[%clk 0:01:12.2]} 21... Nc5 {[%clk
0:02:07.7]} 22. Bd2 {[%clk 0:01:09.1]} 22... Qc6 {[%clk 0:02:02.6]} 23. Ra1
{[%clk 0:01:05]} 23... Nb3 {[%clk 0:02:01.4]} 24. Ra3 {[%clk 0:01:04.8]} 24...
Bf8 {[%clk 0:01:59.9]} 25. Ra2 {[%clk 0:01:04.5]} 25... h4 {[%clk 0:01:53.7]}
26. Be1 {[%clk 0:01:04.4]} 26... a5 {[%clk 0:01:47.5]} 27. Nd2 {[%clk
0:01:03.3]} 27... Nc5 {[%clk 0:01:47.9]} 28. b4 {[%clk 0:00:56.2]} 28... Ne4
{[%clk 0:01:35.9]} 29. Nxe4 {[%clk 0:00:52.1]} 29... dxe4 {[%clk 0:01:36.8]} 30.
b5 {[%clk 0:00:52]} 30... Qe6 {[%clk 0:01:34.7]} 31. Qe2 {[%clk 0:00:51.2]}
31... Rd3 {[%clk 0:01:33.6]} 32. Rxd3 {[%clk 0:00:47.8]} 32... cxd3 {[%clk
0:01:29.8]} 33. Qd1 {[%clk 0:00:46.5]} 33... Qxa2 {[%clk 0:01:29.1]} 0-1

[Event "Early-Titled-Tuesday-Blitz-February-20-2024"]
[Site "Chess.com"]
[Date "2024.02.20"]
[Round "10"]
[White "OneTrickPony_82"]
[Black "Kotofeyca"]
[Result "1/2-1/2"]
[WhiteElo "2527"]
[BlackElo "2413"]
[TimeControl "180+1"]
[EndTime "9:56:23 PST"]
[Termination "Game drawn by repetition"]

1. d4 {[%clk 0:03:00.9]} 1... d5 {[%clk 0:03:00.1]} 2. c4 {[%clk 0:02:59.8]}
2... c6 {[%clk 0:03:00.5]} 3. Nf3 {[%clk 0:03:00.2]} 3... Nf6 {[%clk 0:03:01.1]}
4. cxd5 {[%clk 0:03:00.9]} 4... cxd5 {[%clk 0:03:01.7]} 5. Nc3 {[%clk
0:03:01.3]} 5... Nc6 {[%clk 0:03:02.3]} 6. Bf4 {[%clk 0:03:01.3]} 6... a6 {[%clk
0:03:02.7]} 7. Qb3 {[%clk 0:03:00.7]} 7... Na5 {[%clk 0:02:59.5]} 8. Qc2 {[%clk
0:03:00.4]} 8... b5 {[%clk 0:02:45]} 9. e3 {[%clk 0:02:56.7]} 9... e6 {[%clk
0:02:41.8]} 10. Bd3 {[%clk 0:02:55.5]} 10... Bb7 {[%clk 0:02:41.6]} 11. O-O
{[%clk 0:02:52.9]} 11... Rc8 {[%clk 0:02:41.7]} 12. Qe2 {[%clk 0:02:50.6]} 12...
Nc4 {[%clk 0:02:38.9]} 13. Rfc1 {[%clk 0:02:48.1]} 13... Bd6 {[%clk 0:02:37.4]}
14. Bg5 {[%clk 0:02:44.8]} 14... O-O {[%clk 0:02:36.4]} 15. a4 {[%clk
0:02:29.1]} 15... Qb6 {[%clk 0:02:09.1]} 16. axb5 {[%clk 0:02:24]} 16... axb5
{[%clk 0:02:07.8]} 17. Bxf6 {[%clk 0:02:22.9]} 17... gxf6 {[%clk 0:02:08.7]} 18.
b3 {[%clk 0:02:21.6]} 18... Na5 {[%clk 0:02:01.4]} 19. Nxb5 {[%clk 0:02:19.2]}
19... Nxb3 {[%clk 0:01:55.2]} 20. Bxh7+ {[%clk 0:02:04.7]} 20... Kxh7 {[%clk
0:01:12.8]} 21. Ne5 {[%clk 0:01:35.8]} 21... Rxc1+ {[%clk 0:00:31.1]} 22. Rxc1
{[%clk 0:01:34.3]} 22... Nxc1 {[%clk 0:00:26.4]} 23. Qh5+ {[%clk 0:01:32.4]}
23... Kg7 {[%clk 0:00:27]} 24. Qg4+ {[%clk 0:01:29.5]} 24... Kh7 {[%clk
0:00:26.6]} 25. Qh4+ {[%clk 0:01:28]} 25... Kg7 {[%clk 0:00:26.1]} 26. Qg4+
{[%clk 0:01:22.8]} 26... Kh7 {[%clk 0:00:25.2]} 27. Qh4+ {[%clk 0:01:23.5]}
27... Kg7 {[%clk 0:00:25.1]} 28. Qg4+ {[%clk 0:01:24.2]} 1/2-1/2

[Event "Early-Titled-Tuesday-Blitz-February-20-2024"]
[Site "Chess.com"]
[Date "2024.02.20"]
[Round "10"]
[White "AlexeiShirov"]
[Black "Genghis_K"]
[Result "0-1"]
[WhiteElo "2841"]
[BlackElo "2938"]
[TimeControl "180+1"]
[EndTime "9:56:25 PST"]
[Termination "Genghis_K won by resignation"]

1. e4 {[%clk 0:03:00.9]} 1... c5 {[%clk 0:03:00.7]} 2. Nf3 {[%clk 0:03:00.1]}
2... d6 {[%clk 0:03:01.4]} 3. d4 {[%clk 0:02:59.9]} 3... cxd4 {[%clk 0:03:02.3]}
4. Nxd4 {[%clk 0:03:00.1]} 4... Nf6 {[%clk 0:03:03]} 5. Nc3 {[%clk 0:03:00]}
5... a6 {[%clk 0:03:03.7]} 6. h3 {[%clk 0:02:58.2]} 6... e6 {[%clk 0:03:03.6]}
7. g4 {[%clk 0:02:57.7]} 7... h6 {[%clk 0:03:04.4]} 8. Be3 {[%clk 0:02:56]} 8...
b5 {[%clk 0:03:03.9]} 9. Bg2 {[%clk 0:02:45.4]} 9... Bb7 {[%clk 0:03:04.1]} 10.
a3 {[%clk 0:02:39]} 10... Nbd7 {[%clk 0:03:04.4]} 11. Qe2 {[%clk 0:02:26.8]}
11... Rc8 {[%clk 0:03:03.5]} 12. O-O {[%clk 0:02:20.9]} 12... Be7 {[%clk
0:02:54.6]} 13. f4 {[%clk 0:02:18.2]} 13... Rxc3 {[%clk 0:02:51.7]} 14. bxc3
{[%clk 0:02:17]} 14... Nxe4 {[%clk 0:02:47.4]} 15. f5 {[%clk 0:02:04.1]} 15...
e5 {[%clk 0:02:35.5]} 16. Nf3 {[%clk 0:01:45.6]} 16... Ng3 {[%clk 0:02:31.5]}
17. Qf2 {[%clk 0:01:44.6]} 17... Nxf1 {[%clk 0:02:31.9]} 18. Rxf1 {[%clk
0:01:44.2]} 18... O-O {[%clk 0:02:27]} 19. h4 {[%clk 0:01:38.5]} 19... Bxf3
{[%clk 0:02:26.4]} 20. Qxf3 {[%clk 0:01:37.3]} 20... Bxh4 {[%clk 0:02:26.3]} 21.
Qc6 {[%clk 0:01:35.1]} 21... Nc5 {[%clk 0:02:21.7]} 22. Rd1 {[%clk 0:01:33.7]}
22... Qc8 {[%clk 0:02:12.7]} 23. Rxd6 {[%clk 0:01:30.5]} 23... Na4 {[%clk
0:02:07.4]} 24. Qxc8 {[%clk 0:01:25.5]} 24... Rxc8 {[%clk 0:02:08.1]} 25. Rxa6
{[%clk 0:01:14.8]} 25... Rxc3 {[%clk 0:02:07.7]} 26. Bd5 {[%clk 0:00:57.3]}
26... Rxe3 {[%clk 0:01:51.7]} 27. Ra8+ {[%clk 0:00:56]} 27... Kh7 {[%clk
0:01:50.3]} 28. Bxf7 {[%clk 0:00:55.3]} 28... h5 {[%clk 0:01:44]} 29. g5 {[%clk
0:00:52.6]} 29... Rg3+ {[%clk 0:01:44.1]} 30. Kf1 {[%clk 0:00:44.1]} 30... Rxg5
{[%clk 0:01:44.5]} 31. Bg6+ {[%clk 0:00:32.6]} 31... Rxg6 {[%clk 0:01:45.1]} 32.
fxg6+ {[%clk 0:00:31.6]} 32... Kxg6 {[%clk 0:01:46]} 33. Rb8 {[%clk 0:00:30.5]}
33... Nc3 {[%clk 0:01:45.4]} 34. Rc8 {[%clk 0:00:29.5]} 34... Nb1 {[%clk
0:01:46]} 0-1

[Event "Early-Titled-Tuesday-Blitz-February-20-2024"]
[Site "Chess.com"]
[Date "2024.02.20"]
[Round "10"]
[White "stratacticos"]
[Black "jodarmarlon1985"]
[Result "0-1"]
[WhiteElo "1983"]
[BlackElo "2183"]
[TimeControl "180+1"]
[EndTime "9:56:26 PST"]
[Termination "jodarmarlon1985 won by resignation"]

1. e4 {[%clk 0:03:00.2]} 1... e5 {[%clk 0:02:57.3]} 2. Nf3 {[%clk 0:02:59.6]}
2... Nc6 {[%clk 0:02:55.7]} 3. Bc4 {[%clk 0:02:59]} 3... Nf6 {[%clk 0:02:54.3]}
4. Ng5 {[%clk 0:02:58.3]} 4... d5 {[%clk 0:02:53.7]} 5. exd5 {[%clk 0:02:57.5]}
5... Na5 {[%clk 0:02:53.8]} 6. Bb5+ {[%clk 0:02:57.2]} 6... c6 {[%clk
0:02:53.8]} 7. dxc6 {[%clk 0:02:56.2]} 7... bxc6 {[%clk 0:02:54.7]} 8. Be2
{[%clk 0:02:55.5]} 8... h6 {[%clk 0:02:54.4]} 9. Nh3 {[%clk 0:02:55.1]} 9... Bd6
{[%clk 0:02:52.8]} 10. O-O {[%clk 0:02:52.8]} 10... O-O {[%clk 0:02:49.4]} 11.
Kh1 {[%clk 0:02:52]} 11... c5 {[%clk 0:02:46.5]} 12. Ng1 {[%clk 0:02:50.3]}
12... c4 {[%clk 0:02:43.6]} 13. d3 {[%clk 0:02:37.4]} 13... cxd3 {[%clk
0:02:41.8]} 14. cxd3 {[%clk 0:02:37.1]} 14... Rb8 {[%clk 0:02:31.1]} 15. Nc3
{[%clk 0:02:31.9]} 15... Qc7 {[%clk 0:02:24.8]} 16. Be3 {[%clk 0:02:23.3]} 16...
Be6 {[%clk 0:02:09.7]} 17. Ne4 {[%clk 0:02:08.7]} 17... Be7 {[%clk 0:02:06.4]}
18. Nxf6+ {[%clk 0:02:00.9]} 18... Bxf6 {[%clk 0:02:06]} 19. b3 {[%clk
0:01:57.1]} 19... Rfd8 {[%clk 0:02:00.8]} 20. Qc1 {[%clk 0:01:51]} 20... Nc6
{[%clk 0:01:49.8]} 21. Nf3 {[%clk 0:01:48.9]} 21... Qd7 {[%clk 0:01:44.3]} 22.
Nd2 {[%clk 0:01:40.3]} 22... Nb4 {[%clk 0:01:42.7]} 23. Ne4 {[%clk 0:01:37.4]}
23... Be7 {[%clk 0:01:38]} 24. Rd1 {[%clk 0:01:30.6]} 24... Rbc8 {[%clk
0:01:37.4]} 25. Qb2 {[%clk 0:01:28.9]} 25... Rc2 {[%clk 0:01:34.5]} 26. Qxe5
{[%clk 0:01:21.6]} 26... Rxe2 {[%clk 0:01:31.3]} 27. Qg3 {[%clk 0:01:09.7]}
27... Kh8 {[%clk 0:01:13.2]} 28. a3 {[%clk 0:01:01]} 28... Nc2 {[%clk
0:01:12.5]} 29. Ra2 {[%clk 0:00:55]} 29... Nxe3 {[%clk 0:01:10.9]} 30. fxe3
{[%clk 0:00:50.3]} 30... Rxa2 {[%clk 0:01:09.7]} 0-1

[Event "Early-Titled-Tuesday-Blitz-February-20-2024"]
[Site "Chess.com"]
[Date "2024.02.20"]
[Round "10"]
[White "Rodalquilar"]
[Black "Vaathi_Coming"]
[Result "0-1"]
[WhiteElo "2767"]
[BlackElo "2912"]
[TimeControl "180+1"]
[EndTime "9:56:32 PST"]
[Termination "Vaathi_Coming won on time"]

1. d4 {[%clk 0:03:00.9]} 1... Nf6 {[%clk 0:02:59.9]} 2. Nf3 {[%clk 0:03:01.3]}
2... e6 {[%clk 0:03:00]} 3. Bf4 {[%clk 0:03:01.6]} 3... d5 {[%clk 0:03:00.6]} 4.
e3 {[%clk 0:03:02]} 4... Bd6 {[%clk 0:03:01.1]} 5. Nbd2 {[%clk 0:03:01.8]} 5...
Bxf4 {[%clk 0:03:01]} 6. exf4 {[%clk 0:03:02.3]} 6... c5 {[%clk 0:03:01.9]} 7.
dxc5 {[%clk 0:03:02]} 7... Qc7 {[%clk 0:03:02.6]} 8. g3 {[%clk 0:03:00.3]} 8...
Qxc5 {[%clk 0:03:02.8]} 9. Bd3 {[%clk 0:02:55.4]} 9... O-O {[%clk 0:03:02.2]}
10. O-O {[%clk 0:02:55.1]} 10... Nc6 {[%clk 0:03:02.7]} 11. c3 {[%clk
0:02:51.2]} 11... b6 {[%clk 0:03:02.4]} 12. Re1 {[%clk 0:02:48]} 12... Bb7
{[%clk 0:03:02.1]} 13. Nb3 {[%clk 0:02:48.3]} 13... Qd6 {[%clk 0:03:02]} 14.
Nbd4 {[%clk 0:02:48.8]} 14... Nxd4 {[%clk 0:03:01.5]} 15. Nxd4 {[%clk
0:02:48.7]} 15... g6 {[%clk 0:03:00.8]} 16. a4 {[%clk 0:02:45.6]} 16... Nd7
{[%clk 0:03:00.8]} 17. Bc2 {[%clk 0:02:38.9]} 17... a6 {[%clk 0:02:59.8]} 18. h4
{[%clk 0:02:34.2]} 18... Nc5 {[%clk 0:02:52]} 19. h5 {[%clk 0:02:32]} 19... Ne4
{[%clk 0:02:52.1]} 20. hxg6 {[%clk 0:02:29.4]} 20... hxg6 {[%clk 0:02:53]} 21.
Qg4 {[%clk 0:02:23.7]} 21... Kg7 {[%clk 0:02:50.7]} 22. f3 {[%clk 0:02:16.2]}
22... f5 {[%clk 0:02:18.2]} 23. Qh3 {[%clk 0:01:55.5]} 23... Rh8 {[%clk
0:02:18.2]} 24. Qg2 {[%clk 0:01:53.9]} 24... e5 {[%clk 0:02:18.5]} 25. fxe5
{[%clk 0:01:47]} 25... Qxe5 {[%clk 0:02:19.4]} 26. fxe4 {[%clk 0:01:47.1]} 26...
dxe4 {[%clk 0:02:20.3]} 27. Rad1 {[%clk 0:01:39]} 27... Rae8 {[%clk 0:02:18.7]}
28. b4 {[%clk 0:01:20.6]} 28... Ba8 {[%clk 0:02:17.6]} 29. Re3 {[%clk
0:00:59.8]} 29... a5 {[%clk 0:02:08.8]} 30. Ne2 {[%clk 0:00:44.6]} 30... axb4
{[%clk 0:02:06]} 31. cxb4 {[%clk 0:00:45.2]} 31... Rd8 {[%clk 0:02:03.4]} 32.
Qf1 {[%clk 0:00:29.9]} 32... g5 {[%clk 0:02:01.4]} 33. Rc3 {[%clk 0:00:23.8]}
33... e3 {[%clk 0:01:54.5]} 0-1

[Event "Early-Titled-Tuesday-Blitz-February-20-2024"]
[Site "Chess.com"]
[Date "2024.02.20"]
[Round "10"]
[White "PavelChernomordik"]
[Black "AmanteDeMoi"]
[Result "0-1"]
[WhiteElo "2448"]
[BlackElo "2589"]
[TimeControl "180+1"]
[EndTime "9:56:33 PST"]
[Termination "AmanteDeMoi won by resignation"]

1. e4 {[%clk 0:03:00.9]} 1... g6 {[%clk 0:02:59]} 2. h4 {[%clk 0:02:57.8]} 2...
Bg7 {[%clk 0:02:59.9]} 3. h5 {[%clk 0:02:57.5]} 3... c6 {[%clk 0:03:00.8]} 4. d4
{[%clk 0:02:54.1]} 4... d5 {[%clk 0:03:01.7]} 5. e5 {[%clk 0:02:53.8]} 5... c5
{[%clk 0:03:02.1]} 6. c3 {[%clk 0:02:53.1]} 6... Nc6 {[%clk 0:03:02.4]} 7. h6
{[%clk 0:02:50]} 7... Bf8 {[%clk 0:03:02.7]} 8. Be3 {[%clk 0:02:45.3]} 8... Bf5
{[%clk 0:03:03]} 9. Bd3 {[%clk 0:02:41.8]} 9... Bxd3 {[%clk 0:03:02.8]} 10. Qxd3
{[%clk 0:02:41.4]} 10... e6 {[%clk 0:03:03.7]} 11. Nf3 {[%clk 0:02:39.4]} 11...
Qb6 {[%clk 0:03:04.2]} 12. Qe2 {[%clk 0:02:31.3]} 12... Rc8 {[%clk 0:03:02.4]}
13. g4 {[%clk 0:02:24.2]} 13... cxd4 {[%clk 0:03:02.5]} 14. cxd4 {[%clk
0:02:23.8]} 14... Bxh6 {[%clk 0:02:48]} 15. Bxh6 {[%clk 0:02:20.6]} 15... Nxh6
{[%clk 0:02:48.9]} 16. Rxh6 {[%clk 0:02:19.9]} 16... Nxd4 {[%clk 0:02:48.4]} 17.
Nxd4 {[%clk 0:02:13.2]} 17... Rc1+ {[%clk 0:02:48.7]} 18. Kd2 {[%clk 0:02:09.8]}
18... Qxb2+ {[%clk 0:02:49.2]} 19. Ke3 {[%clk 0:02:09.5]} 19... Qxa1 {[%clk
0:02:49.1]} 20. Qb5+ {[%clk 0:02:07]} 20... Kf8 {[%clk 0:02:48.5]} 21. Nd2
{[%clk 0:01:52.2]} 21... Qc3+ {[%clk 0:02:41]} 22. Qd3 {[%clk 0:01:50.9]} 22...
Re1+ {[%clk 0:02:41]} 23. Ne2 {[%clk 0:01:50.6]} 23... Qxe5+ {[%clk 0:02:41.2]}
24. Kf3 {[%clk 0:01:50.5]} 24... Kg7 {[%clk 0:02:36.9]} 25. Rh3 {[%clk
0:01:43.9]} 25... Rc8 {[%clk 0:02:37.1]} 26. Qe3 {[%clk 0:01:34.2]} 26... Qxe3+
{[%clk 0:02:25]} 27. fxe3 {[%clk 0:01:31.1]} 27... Rc2 {[%clk 0:02:22.7]} 28.
Kf2 {[%clk 0:01:21.1]} 28... Ra1 {[%clk 0:02:22.9]} 29. Nb3 {[%clk 0:01:15.3]}
29... Raxa2 {[%clk 0:02:19.9]} 30. Nd4 {[%clk 0:01:14.8]} 30... Rd2 {[%clk
0:02:18.5]} 31. Kf3 {[%clk 0:01:09.6]} 31... e5 {[%clk 0:02:17.7]} 32. Nc3
{[%clk 0:01:09.1]} 32... exd4 {[%clk 0:01:09.9]} 33. Nxa2 {[%clk 0:01:08]} 33...
Rxa2 {[%clk 0:01:10.8]} 0-1